{"text_format":"3","workbook":"xlsx","n_sheets":3,"sheets":["Sheet1","Sheet2","Sheet3"],"not_rendered":{"defined_names":2},"read":"whole","date_system":"1900"}

{"sheet":"Sheet1","index":0,"n_rows":49,"n_cols":6,"rows_kept":49,"merged":[[3,0,3,5],[4,0,4,5],[5,0,5,4],[8,0,9,0],[8,1,9,1],[8,2,9,2],[8,3,9,3],[8,4,8,5]]}
["Sở Tài chính tỉnh Vĩnh Long",{"$nulls":3},"biểu số 1"]
["Chương 418"]
[]
["DỰ TOÁN THU, CHI NGÂN SÁCH ĐƯỢC GIAO "]
["VÀ PHÂN BỔ CHO CÁC ĐƠN VỊ TRỰC THUỘC năm 2025"]
["(Kèm theo Quyết định số    17/QĐ-STC  ngày    09/ 01/2025     của Sở Tài chính)"]
[]
[{"$nulls":3},"Đơn vị tính: triệu đồng"]
["Stt","Nội dung","Tổng số được giao","Tổng số đã phân bổ","Trong đó"]
[{"$nulls":4},"Sở Tài chính","TT Thông tin tư vấn và dịch vụ tài chính"]
["A","Tổng số thu, chi nộp ngân sách "]
["I","Số thu",{"$f":"E12+F12","v":{"v":4878.5,"d":"4,879"}},{"$f":"E12+F12","v":{"v":4878.5,"d":"4,879"}},{"$f":"SUM(E13:E17)","v":{"v":4123,"d":"4,123"}},{"$f":"SUM(F13:F17)","v":{"v":755.5,"d":"756"}}]
[null," - Thu chi phí thẩm tra phê duyệt quyết toán dự án",{"$f":"E13+F13","v":{"v":4000,"d":"4,000"}},{"$f":"E13+F13","v":{"v":4000,"d":"4,000"}},{"v":4000,"d":"4,000"}]
[null," - Thu đăng ký giá nước",{"$f":"E14+F14","v":0},{"$f":"E14+F14","v":0}]
[null," - Thu chi phí thẩm định giá đất của Hội đồng thẩm định giá đất áp dụng bồi thường",0,0]
[null," - Các khoản sai phạm do thanh tra phát hiện thu hồi nộp NSNN",123,123,123]
[null," - Thu hoạt động dịch vụ ",{"v":755.5,"d":"756"},{"v":755.5,"d":"756"},null,{"v":755.5,"d":"756"}]
["II","Chi từ nguồn thu được để lại",{"$f":"E18+F18","v":{"v":4755.5,"d":"4,756"}},{"v":4755.5,"d":"4,756"},{"$f":"SUM(E19:E22)","v":{"v":4000,"d":"4,000"}},{"$f":"SUM(F19:F22)","v":{"v":755.5,"d":"756"}}]
[null," - Chi phí thẩm tra, phê duyệt quyết toán dự án (chi thù lao quyết toán công trình,  văn phòng phẩm, bơm mực, sửa thiết bị văn phòng, tin học; chi khác)",{"$f":"E19+F19","v":{"v":4000,"d":"4,000"}},{"v":4000,"d":"4,000"},{"v":4000,"d":"4,000"}]
[null," - Chi đăng ký giá nước (photo, văn phòng phẩm, gửi bảng giá…)",{"$f":"E20+F20","v":0},0]
[null," - Chi phí thẩm định giá đất của Hội đồng thẩm định giá đất áp dụng bồi thường (nước uống họp, chi cho thành viên họp thẩm định phương án giá đất)",0,0]
[null," - Hoạt động dịch vụ ",{"v":755.5,"d":"756"},{"v":755.5,"d":"756"},null,{"v":755.5,"d":"756"}]
["III","Nộp ngân sách nhà nước",{"v":177.9,"d":"178"},{"v":177.9,"d":"178"},{"$f":"E24+E25","v":123},{"$f":"F24+F25","v":{"v":54.9,"d":"55"}}]
[null," - Các khoản sai phạm do thanh tra phát hiện thu hồi ",123,123,123]
[null," - Thuế GTGT, TNDN từ thu dịch vụ",{"v":54.9,"d":"55"},{"v":54.9,"d":"55"},null,{"v":54.9,"d":"55"}]
["B","Dự toán chi NSNN",{"v":13958,"d":"13,958"},{"v":13958,"d":"13,958"},{"$f":"E27+E31+E34+E39+E44+E47","v":{"v":13658,"d":"13,658"}},{"$f":"F27+F31+F34+F39+F44+F47","v":300}]
[1,"Quản lý hành chính (340-341)",{"v":12992,"d":"12,992"},{"v":12992,"d":"12,992"},{"$f":"E28+E30","v":{"v":12992,"d":"12,992"}}]
["1.1","Kinh phí thực hiện tự chủ",{"v":11803,"d":"11,803"},{"v":11803,"d":"11,803"},{"v":11803,"d":"11,803"}]
[null,"trong đó tiết kiệm 10% cải cách tiền lương ",0,0]
["1.2","Kinh phí không thực hiện tự chủ",{"v":1189,"d":"1,189"},{"v":1189,"d":"1,189"},{"v":1189,"d":"1,189"}]
[2,"Nghiên cứu khoa học (100-103)",40,40,{"$f":"E32+E33","v":40}]
["2.1","Kinh phí nhiệm vụ  thường xuyên theo chức năng",{"$f":"E32+F32","v":0},0]
["2.2","Kinh phí nhiệm vụ không thường xuyên",{"$f":"E33+F33","v":40},40,40]
["3.","Sự nghiệp giáo dục, đào tạo, dạy nghề",{"$f":"E34+F34","v":500},500,{"$f":"E35+E36","v":500}]
["3.1","Kinh phí nhiệm vụ  thường xuyên ",{"$f":"E35+F35","v":0},0]
["3.2","Kinh phí nhiệm vụ không thường xuyên",500,500,{"$f":"E37+E38","v":500}]
[null,"loại 070 khoản 082",100,100,100]
[null,"loại 070 khoản 085",400,400,400]
[4,"Sự nghiệp kinh tế ",{"$f":"E39+F39","v":300},300,{"$f":"E40+E41","v":0},{"$f":"F40+F41","v":300}]
["4.1","Kinh phí nhiệm vụ  thường xuyên ",{"$f":"E40+F40","v":0},0]
["4.2","Kinh phí nhiệm vụ không thường xuyên",300,300,{"$f":"E42+E43","v":0},{"$f":"F42+F43","v":300}]
[null,"loại 280 khoản 312",0,0]
[null,"loại 280 khoản 338",300,300,null,300]
[5,"Chi khác ngân sách (400-428)",126,126,{"$f":"E45+E46","v":126}]
["5.1","Kinh phí nhiệm vụ  thường xuyên ",0,0]
["5.2","Kinh phí nhiệm vụ không thường xuyên",126,126,126]
[6,"Sự nghiệp thông tin truyền thông 160-171",{"$f":"D47","v":0},{"$f":"E47+F47","v":0},{"$f":"E48+E49","v":0}]
["6.1","Kinh phí nhiệm vụ  thường xuyên ",{"$f":"D48","v":0},{"$f":"E48+F48","v":0}]
["6.2","Kinh phí nhiệm vụ không thường xuyên",0,0]

{"sheet":"Sheet2","index":1,"n_rows":47,"n_cols":3,"rows_kept":47,"merged":[[3,0,3,2],[4,0,4,2]]}
["Sở Tài chính tỉnh Vĩnh Long",null,"biểu số 2"]
["Chương 418"]
[]
["DỰ TOÁN THU, CHI NGÂN SÁCH NHÀ NƯỚC NĂM 2025"]
["(Kèm theo Quyết định số   17 /QĐ-STC  ngày    09/ 01/2025       của Sở Tài chính)"]
[]
[null,null,"Đơn vị tính: triệu đồng"]
["Stt","Nội dung","Dự toán được giao"]
["A","Tổng số thu, chi nộp ngân sách "]
["I","Số thu",{"$f":"SUM(C11:C15)","v":{"v":4123,"d":"4,123"}}]
[null," - Thu chi phí thẩm tra phê duyệt quyết toán dự án",{"v":4000,"d":"4,000"}]
[null," - Thu đăng ký giá nước"]
[null," - Thu chi phí thẩm định giá đất của Hội đồng thẩm định giá đất áp dụng bồi thường"]
[null," - Các khoản sai phạm do thanh tra phát hiện thu hồi nộp NSNN",123]
[null," - Thu hoạt động dịch vụ "]
["II","Chi từ nguồn thu được để lại",{"$f":"SUM(C17:C20)","v":{"v":4000,"d":"4,000"}}]
[null," - Chi phí thẩm tra, phê duyệt quyết toán dự án (chi thù lao quyết toán công trình,  văn phòng phẩm, bơm mực, sửa thiết bị văn phòng, tin học; chi khác)",{"v":4000,"d":"4,000"}]
[null," - Chi đăng ký giá nước (photo, văn phòng phẩm, gửi bảng giá…)"]
[null," - Chi phí thẩm định giá đất của Hội đồng thẩm định giá đất áp dụng bồi thường (nước uống họp, chi cho thành viên họp thẩm định phương án giá đất)"]
[null," - Hoạt động dịch vụ "]
["III","Nộp ngân sách nhà nước",{"$f":"C22+C23","v":123}]
[null," - Các khoản sai phạm do thanh tra phát hiện thu hồi ",123]
[null," - Thuế GTGT, TNDN từ thu dịch vụ"]
["B","Dự toán chi NSNN",{"$f":"C25+C29+C32+C37+C42+C45","v":{"v":13658,"d":"13,658"}}]
[1,"Quản lý hành chính (340-341)",{"$f":"C26+C28","v":{"v":12992,"d":"12,992"}}]
["1.1","Kinh phí thực hiện tự chủ",{"v":11803,"d":"11,803"}]
[null,"trong đó tiết kiệm 10% cải cách tiền lương "]
["1.2","Kinh phí không thực hiện tự chủ",{"v":1189,"d":"1,189"}]
[2,"Nghiên cứu khoa học (100-103)",{"$f":"C30+C31","v":40}]
["2.1","Kinh phí nhiệm vụ  thường xuyên theo chức năng"]
["2.2","Kinh phí nhiệm vụ không thường xuyên",40]
["3.","Sự nghiệp giáo dục, đào tạo, dạy nghề",{"$f":"C33+C34","v":500}]
["3.1","Kinh phí nhiệm vụ  thường xuyên "]
["3.2","Kinh phí nhiệm vụ không thường xuyên",{"$f":"C35+C36","v":500}]
[null,"loại 070 khoản 082",100]
[null,"loại 070 khoản 085",400]
[4,"Sự nghiệp kinh tế ",{"$f":"C38+C39","v":0}]
["4.1","Kinh phí nhiệm vụ  thường xuyên "]
["4.2","Kinh phí nhiệm vụ không thường xuyên",{"$f":"C40+C41","v":0}]
[null,"loại 280 khoản 312"]
[null,"loại 280 khoản 338"]
[5,"Chi khác ngân sách (400-428)",{"$f":"C43+C44","v":126}]
["5.1","Kinh phí nhiệm vụ  thường xuyên "]
["5.2","Kinh phí nhiệm vụ không thường xuyên",126]
[6,"Sự nghiệp thông tin truyền thông 160-171",{"$f":"C46+C47","v":0}]
["6.1","Kinh phí nhiệm vụ  thường xuyên "]
["6.2","Kinh phí nhiệm vụ không thường xuyên"]

{"sheet":"Sheet3","index":2,"n_rows":29,"n_cols":3,"rows_kept":29,"merged":[[3,0,3,2],[4,0,4,2]]}
["TT Thông tin tư vấn và dịch vụ tài chính",null,"biểu số 2"]
["Chương 418"]
[]
["DỰ TOÁN THU, CHI NGÂN SÁCH NHÀ NƯỚC NĂM 2025"]
["(Kèm theo Quyết định số   17/QĐ-STC  ngày   09/01/2025        của Sở Tài chính)"]
[]
[null,null,"Đơn vị tính: triệu đồng"]
["Stt","Nội dung","Dự toán được giao"]
["A","Tổng số thu, chi nộp ngân sách "]
[1,"Số thu",{"$f":"SUM(C11:C11)","v":{"v":755.5,"d":"756"}}]
[null," - Thu hoạt động dịch vụ ",{"v":755.5,"d":"756"}]
[2,"Chi từ nguồn thu được để lại",{"$f":"SUM(C13:C13)","v":{"v":679.95,"d":"680"}}]
[null," - Hoạt động dịch vụ ",{"v":679.95,"d":"680"}]
[3,"Nộp ngân sách nhà nước",{"$f":"C15","v":{"v":75.55,"d":"76"}}]
[null," - Thuế GTGT, TNDN từ thu dịch vụ",{"v":75.55,"d":"76"}]
["B","Dự toán chi NSNN",{"$f":"C17+C21+C24+C27","v":300}]
[1,"Chi quản lý hành chính"]
["1.1","Kinh phí thực hiện tự chủ"]
[null,"trong đó tiết kiệm 10% cải cách tiền lương "]
["1.2","Kinh phí không thực hiện tự chủ"]
[2,"Nghiên cứu khoa học"]
["2.1","Kinh phí nhiệm vụ  thường xuyên theo chức năng"]
["2.2","Kinh phí nhiệm vụ không thường xuyên"]
[3,"Sự nghiệp giáo dục, đào tạo, dạy nghề"]
["3.1","Kinh phí nhiệm vụ  thường xuyên "]
["3.2","Kinh phí nhiệm vụ không thường xuyên"]
[4,"Sự nghiệp kinh tế (280-338)",{"$f":"C28+C29","v":300}]
["4.1","Kinh phí nhiệm vụ  thường xuyên (tự chủ)"]
["4.2","Kinh phí nhiệm vụ không thường xuyên",300]